bitfinex-derivatives/quotes_BNBF0:USTF0_20250126
["timestamp","ask_amount","ask_price","bid_price","bid_amount"]
[1737934156662,0.89636418,666.66,666.61,0.783]
[1737934157362,0.89636418,666.65,666.61,0.783]
[1737934157761,0.89636418,666.64,666.61,0.783]
[1737934158159,0.89636418,666.63,666.61,0.783]
[1737934158663,0.89636418,666.62,666.61,0.783]
[1737934161164,0.89636418,666.85,666.61,0.783]
[1737934161762,0.89636418,666.84,666.61,0.783]
[1737934162169,0.89636418,666.83,666.61,0.783]
[1737934162667,0.89636418,666.82,666.61,0.783]
[1737934163462,0.89636418,666.81,666.61,0.783]
[1737934163866,0.89636418,666.8,666.61,0.783]
[1737934164267,0.89636418,666.79,666.61,0.783]
[1737934164668,0.89636418,666.78,666.61,0.783]
[1737934164870,0.89636418,666.77,666.61,0.783]
[1737934165364,0.89636418,666.76,666.61,0.783]
[1737934165770,0.89636418,666.76,666.55,1.822]
[1737934166064,1.19632668,666.75,666.55,1.822]
[1737934166468,0.89636418,666.74,666.55,1.822]
[1737934166969,0.89636418,666.73,666.55,1.822]
[1737934167569,0.89636418,666.72,666.55,1.822]
[1737934168062,0.89636418,666.71,666.55,1.822]
[1737934168568,0.89636418,666.7,666.55,1.822]
[1737934169069,0.2999625,666.75,666.55,1.822]
[1737934169070,0.89636418,666.69,666.55,1.822]
[1737934169871,0.89636418,666.68,666.55,1.822]
[1737934170473,0.89636418,666.67,666.55,1.822]
[1737934170874,0.89636418,666.66,666.55,1.822]
[1737934171071,0.89636418,666.66,666.55,0.882]
[1737934171472,0.89636418,666.65,666.55,0.882]
[1737934172474,0.89636418,666.64,666.55,0.882]
[1737934172674,0.89636418,666.63,666.55,0.882]
[1737934173075,0.89636418,666.62,666.55,0.882]
[1737934173775,0.89636418,666.61,666.55,0.882]
[1737934174478,0.89636418,666.6,666.55,0.882]
[1737934174775,0.89636418,666.59,666.55,0.882]
[1737934174975,0.89636418,666.59,666.53,0.68]
[1737934175680,0.89636418,666.58,666.53,0.68]
[1737934175975,0.89636418,666.57,666.53,0.68]
[1737934176379,0.89636418,666.56,666.53,0.68]
[1737934177076,0.89636418,666.55,666.53,0.68]
[1737934177676,0.89636418,666.74,666.53,0.68]
[1737934177976,0.89636418,666.73,666.53,0.68]
[1737934178373,0.89636418,666.72,666.53,0.68]
[1737934179075,0.89636418,666.74,666.53,0.68]
[1737934179975,0.89636418,667.12,666.53,0.68]
[1737934180678,0.89636418,667.11,666.53,0.68]
[1737934180877,0.89636418,667.1,666.53,0.68]
[1737934181273,0.89636418,667.09,666.53,0.68]
[1737934182172,0.89636418,667.08,666.53,0.68]
[1737934182874,1.07994357,667.37,666.53,0.68]
[1737934182875,0.89636418,667.07,666.53,0.68]
[1737934183276,0.89636418,667.07,666.54,0.27552537]
[1737934183878,0.89636418,667.36,666.54,0.27552537]
[1737934184181,0.89636418,667.36,666.54,1.01152537]
[1737934184474,0.89636418,667.35,666.55,0.27552537]
[1737934184879,0.89636418,667.34,666.54,0.736]
[1737934185076,0.89636418,667.34,666.56,0.27550164]
[1737934185277,0.89636418,667.34,666.57,0.27550164]
[1737934185480,0.89636418,667.33,666.57,0.659]
[1737934185683,0.89636418,667.33,666.58,0.27550164]
[1737934186184,0.89636418,667.92,666.57,0.659]
[1737934186484,0.29944602,667.9,666.58,0.27538181]
[1737934186683,0.29944602,667.9,666.59,0.27538181]
[1737934186982,0.29944602,667.9,666.57,0.659]
[1737934186983,0.29944602,667.9,666.6,0.27538181]
[1737934187183,0.89636418,667.89,666.58,0.27538181]
[1737934187478,0.89636418,667.89,666.59,0.27538181]
[1737934187682,0.89636418,667.89,666.57,0.659]
[1737934187879,0.89636418,667.88,666.58,0.27538778]
[1737934188681,0.89636418,667.87,666.58,0.27538778]
[1737934189287,0.89636418,667.86,666.58,0.27538778]
[1737934190081,0.89636418,667.85,666.57,0.659]
[1737934190686,0.89636418,667.84,666.57,0.659]
[1737934191186,0.89636418,667.83,666.57,0.659]
[1737934191388,0.89636418,667.83,666.58,0.27542068]
[1737934191589,0.89636418,667.82,666.58,0.27542068]
[1737934191987,1.19585056,667.81,666.58,0.27542068]
[1737934192192,0.29949086,667.8,666.58,0.27542068]
[1737934192687,0.89636418,667.79,666.58,0.27542068]
[1737934192889,0.29949983,667.78,666.58,0.27542068]
[1737934193184,1.19586401,667.78,666.58,0.27542068]
[1737934193488,0.89636418,667.77,666.58,0.27542068]
[1737934193889,0.89636418,667.76,666.58,0.27542068]
[1737934194488,0.89636418,667.75,666.58,0.27542068]
[1737934194687,0.89636418,667.74,666.58,0.27542068]
[1737934195383,0.89636418,667.73,666.58,0.27542068]
[1737934195783,0.89636418,667.72,666.58,0.27542068]
[1737934195988,0.89636418,667.72,666.57,0.659]
[1737934196188,0.89636418,667.72,666.58,0.27550626]
[1737934196584,0.89636418,667.71,666.58,0.27550626]
[1737934197089,0.89636418,667.7,666.58,0.27550626]
[1737934197388,0.29949983,667.78,666.58,0.27550626]
[1737934197389,0.89636418,667.69,666.58,0.27550626]
[1737934197788,0.89636418,667.68,666.58,0.27550626]
[1737934198087,0.89636418,667.68,666.57,0.659]
[1737934198289,0.89636418,667.67,666.57,0.659]
[1737934198689,0.89636418,667.66,666.57,0.659]
[1737934199287,0.89636418,667.65,666.57,0.659]
[1737934199691,0.29956712,667.63,666.57,0.659]
[1737934200390,0.29956712,667.63,666.58,0.27551221]
[1737934200391,0.89636418,667.62,666.58,0.27551221]
[1737934200690,0.89636418,667.61,666.58,0.27551221]
[1737934201390,0.89636418,667.6,666.57,1.527]
[1737934201983,0.89636418,667.59,666.57,1.527]
[1737934202187,0.89636418,667.58,666.57,1.527]
[1737934202786,0.29956712,667.63,666.57,1.527]
[1737934202787,0.89636418,667.57,666.57,1.527]
[1737934203191,0.89636418,667.57,666.58,0.27556063]
[1737934203486,0.89636418,667.56,666.57,0.868]
[1737934203888,0.29956712,667.63,666.57,0.868]
[1737934203889,0.89636418,667.55,666.57,0.868]
[1737934204492,0.89636418,667.54,666.57,0.868]
[1737934204687,0.89636418,667.54,666.57,1.646]
[1737934205193,0.89636418,667.53,666.57,1.646]
[1737934205785,0.89636418,667.52,666.57,1.646]
[1737934206388,0.89636418,667.51,666.57,1.646]
[1737934206892,0.89636418,667.5,666.57,1.646]
[1737934207694,0.89636418,667.49,666.57,1.646]
[1737934208095,0.89636418,667.48,666.57,1.646]
[1737934208491,0.89636418,667.47,666.57,1.646]
[1737934209088,0.89636418,667.46,666.57,1.646]
[1737934209492,0.89636418,667.45,666.57,1.646]
[1737934210294,1.56602153,667.44,666.57,1.646]
[1737934210495,0.89636418,667.43,666.57,1.646]
[1737934211291,0.89636418,667.42,666.57,1.646]
[1737934212094,0.29967036,667.4,666.57,1.646]
[1737934212396,0.89636418,667.39,666.57,1.646]
[1737934213297,0.89636418,667.38,666.57,1.646]
[1737934213792,0.89636418,667.37,666.57,1.646]
[1737934214397,0.89636418,667.37,666.57,2.611]
[1737934214598,0.89636418,667.36,666.57,2.611]
[1737934214896,0.89636418,667.35,666.57,2.611]
[1737934215298,0.89636418,667.35,666.57,0.83968037]
[1737934215499,0.89636418,667.35,664.78,1.11809756]
[1737934215699,0.89636418,667.35,664.34,0.73026646]
[1737934215700,0.89636418,667.34,664.8,0.30084235]
[1737934215894,0.89636418,667.34,664.81,0.27583016]
[1737934216095,0.89636418,667.34,664.82,0.27583016]
[1737934216291,0.89636418,667.33,664.83,0.27583016]
[1737934216494,0.89636418,667.33,664.84,0.27583016]
[1737934216697,0.89636418,667.33,664.85,0.27583016]
[1737934217000,0.89636418,667.32,664.86,1.00609662]
[1737934217300,0.89636418,667.32,664.87,0.27583016]
[1737934217499,0.89636418,667.31,664.88,0.27577917]
[1737934217694,0.89636418,667.31,664.84,1.071]
[1737934217695,0.89636418,667.31,664.89,0.27577917]
[1737934217899,0.89636418,667.31,664.9,0.27577917]
[1737934218096,0.89636418,667.31,664.91,0.27577917]
[1737934218301,0.89636418,667.3,664.92,0.27577917]
[1737934218501,0.89636418,667.3,664.93,0.27577917]
[1737934218701,0.89636418,667.29,665.03,0.30073831]
[1737934218899,0.89636418,667.29,665.04,0.27577917]
[1737934219102,0.29972874,667.27,665.06,0.30072474]
[1737934219302,0.29972874,667.27,665.07,0.27574728]
[1737934219503,0.29972874,667.27,665.08,0.27574728]
[1737934219703,0.89636418,667.26,665.09,0.27574728]
[1737934220004,0.89636418,667.26,665.1,1.00607203]
[1737934220298,0.89636418,667.26,665.11,1.00607203]
[1737934220502,0.89636418,667.25,665.12,1.00607203]
[1737934220703,0.89636418,667.25,665.13,1.00607203]
[1737934220902,0.89636418,667.24,665.13,0.27574728]
[1737934221099,0.89636418,667.24,665.06,0.30072474]
[1737934221298,0.89636418,667.24,665.07,0.27577939]
[1737934221498,0.89636418,667.23,665.08,0.27577939]
[1737934221701,0.89636418,667.22,665.1,0.30070666]
[1737934221903,0.89636418,667.22,665.11,1.00617082]
[1737934222102,0.89636418,667.22,665.12,0.27577939]
[1737934222400,0.29972874,667.27,665.14,0.30068857]
[1737934222401,0.29976019,667.2,665.14,0.30068857]
[1737934222602,0.29976019,667.2,665.15,0.27577939]
[1737934222802,0.29976019,667.2,665.16,1.00617082]
[1737934223005,0.89636418,667.19,665.17,1.00617082]
[1737934223207,0.89636418,667.19,665.18,1.00617082]
[1737934223506,0.89636418,667.18,665.19,0.27577939]
[1737934223705,0.89636418,667.17,665.2,0.27577939]
[1737934223899,0.89636418,667.17,665.15,0.27577939]
[1737934224102,0.89636418,667.17,665.16,1.00617082]
[1737934224305,0.89636418,667.16,665.17,0.27577939]
[1737934224499,0.89636418,667.16,665.14,0.30068857]
[1737934224500,0.89636418,667.16,665.18,0.27577939]
[1737934224703,0.29976019,667.2,665.18,0.27577939]
[1737934224704,0.89636418,667.15,665.18,0.27577939]
[1737934224906,0.89636418,667.15,665.19,1.00617082]
[1737934225106,0.89636418,667.14,665.2,0.27577939]
[1737934225306,0.89636418,667.14,665.21,0.27577939]
[1737934225502,0.89636418,667.14,665.22,0.27577939]
[1737934225707,0.89636418,667.13,665.23,0.27577939]
[1737934226007,0.89636418,667.13,665.24,0.27577939]
[1737934226207,0.89636418,667.12,665.25,0.27577939]
[1737934226501,0.89636418,667.11,665.26,0.27577939]
[1737934226706,0.89636418,667.11,665.27,0.27579674]
[1737934226907,0.89636418,667.1,665.28,0.27579674]
[1737934227108,0.89636418,667.1,665.29,0.27579674]
[1737934227305,0.89636418,667.09,665.3,0.27579674]
[1737934227511,0.89636418,667.09,665.31,0.27579674]
[1737934227710,0.89636418,667.09,665.32,0.27579674]
[1737934227910,0.89636418,667.08,665.33,0.27579674]
[1737934228206,0.89636418,667.07,665.34,0.27579674]
[1737934228410,0.89636418,667.07,665.14,0.30068857]
[1737934228604,0.89636418,667.06,665.15,0.27580108]
[1737934228804,0.89636418,667.06,665.16,0.27580108]
[1737934229110,0.89636418,667.05,665.17,0.27580108]
[1737934229309,0.89636418,667.05,665.18,0.27580108]
[1737934229510,0.89636418,667.05,665.19,0.27580108]
[1737934229710,0.89636418,667.04,665.2,0.27580108]
[1737934229911,0.89636418,667.04,665.21,0.27580108]
[1737934230111,0.89636418,667.03,665.22,0.27580108]
[1737934230411,0.89636418,667.03,665.23,0.27579811]
[1737934230712,0.89636418,667.02,665.24,0.27579811]
[1737934230910,0.89636418,667.02,665.25,0.27579811]
[1737934231111,0.89636418,667.01,665.26,0.27579811]
[1737934231312,0.89636418,667.01,665.27,0.27579811]
[1737934231611,0.89636418,667.0,665.28,0.27579811]
[1737934231810,0.89636418,667.0,665.29,0.27579811]
[1737934232011,0.89636418,666.99,665.3,0.27579811]
[1737934232211,0.89636418,666.99,665.15,0.27579811]
[1737934232411,0.89636418,666.99,665.16,0.27579811]
[1737934232712,0.8941277,666.98,665.17,0.27579811]
[1737934232913,0.8941277,666.97,665.18,0.27579811]
[1737934233213,0.29976019,667.2,665.19,0.27579811]
[1737934233214,0.8941277,666.96,665.19,0.27579811]
[1737934233414,0.8941277,666.96,665.2,0.27579811]
[1737934233712,0.8941277,666.95,665.21,0.27579811]
[1737934233912,0.8941277,666.95,665.14,0.30068857]
[1737934234212,0.8941277,666.94,665.15,0.27583398]
[1737934234412,0.8941277,666.94,665.16,0.27583398]
[1737934234714,0.8941277,666.94,665.17,0.27583398]
[1737934235012,0.8941277,666.93,665.18,0.27583398]
[1737934235213,0.8941277,666.93,665.19,0.27583398]
[1737934235406,0.29976019,667.2,665.14,0.30068857]
[1737934235407,0.8941277,666.92,665.14,0.30068857]
[1737934235611,0.8941277,666.92,665.15,0.27583702]
[1737934235805,0.8941277,666.91,665.16,0.27583702]
[1737934236011,0.8941277,666.91,665.17,0.27583702]
[1737934236210,0.8941277,666.91,665.18,0.27583702]
[1737934236407,0.8941277,666.9,665.19,0.27583702]
[1737934236609,0.8941277,666.9,665.14,0.97768857]
[1737934236610,0.8941277,666.9,665.2,0.27583702]
[1737934236807,0.8941277,666.9,665.21,0.27583702]
[1737934237012,0.8941277,666.9,665.22,0.27583702]
[1737934237208,0.8941277,666.9,665.23,0.27583702]
[1737934237406,0.8941277,666.89,665.24,0.27583702]
[1737934237706,0.8941277,666.89,665.25,0.27583702]
[1737934237909,0.29976019,667.2,665.14,0.97768857]
[1737934237910,0.8941277,666.88,665.26,0.27583702]
[1737934238107,0.8941277,666.88,665.15,0.2760159]
[1737934238313,0.8941277,666.87,665.16,0.2760159]
[1737934238515,0.8941277,666.87,665.17,0.2760159]
[1737934238708,0.8941277,666.87,665.15,0.2760159]
[1737934238914,0.8941277,666.86,665.16,0.2760159]
[1737934239110,0.8941277,666.86,665.15,0.2760159]
[1737934239418,0.29992202,666.84,665.14,0.677]
[1737934239611,0.29992202,666.84,665.15,0.27601673]
[1737934240115,0.8941277,666.83,665.15,0.27601673]
[1737934240315,0.29993551,666.81,665.15,0.27601673]
[1737934240715,0.8941277,666.8,665.15,0.27601673]
[1737934240912,0.299949,666.78,665.15,0.27601673]
[1737934241117,0.299949,666.78,665.15,1.01801673]
[1737934241319,0.8941277,666.77,665.16,0.27601086]
[1737934241611,0.2999625,666.75,665.16,0.27601086]
[1737934242118,0.8941277,666.74,665.16,0.27601086]
[1737934242321,0.299976,666.72,665.16,0.27601086]
[1737934243020,0.8941277,666.71,665.16,0.27601086]
[1737934243416,0.8941277,666.7,665.16,0.27601086]
[1737934243818,0.8941277,666.69,665.16,0.27601086]
[1737934244218,0.8941277,666.68,665.16,0.27601086]
[1737934244419,2.46240759,666.68,665.15,0.742]
[1737934244719,2.46240759,666.68,665.16,0.27599809]
[1737934244923,2.46240759,666.68,665.15,0.742]
[1737934245215,0.8941277,666.67,665.16,0.27599272]
[1737934245515,0.8941277,666.66,665.16,0.27599272]
[1737934245718,0.8941277,666.65,665.16,0.27599272]
[1737934246319,0.8941277,666.64,665.16,0.27599272]
[1737934247019,0.8941277,666.63,665.16,0.27599272]
[1737934247322,0.8941277,666.63,665.17,0.27599272]
[1737934247622,0.8941277,666.62,665.18,0.27599272]
[1737934247821,0.8941277,666.62,665.19,0.27599272]
[1737934248017,0.8941277,666.61,665.2,0.27599272]
[1737934248224,0.8941277,666.61,665.21,0.27599272]
[1737934248417,0.8941277,666.61,665.22,0.27599272]
[1737934248623,0.8941277,666.61,665.23,0.27599272]
[1737934248822,0.8941277,666.6,665.24,0.27599272]
[1737934249023,0.8941277,666.6,665.25,0.27599272]
[1737934249222,0.8941277,666.59,665.26,0.27599272]
[1737934249523,0.8941277,666.59,665.27,0.27599272]
[1737934249824,0.8941277,666.58,665.28,0.27599272]
[1737934250024,0.8941277,666.58,665.29,0.27599272]
[1737934250227,0.8941277,666.58,665.16,0.27599272]
[1737934250423,0.8941277,666.57,665.17,0.27599272]
[1737934250725,0.8941277,666.57,665.18,0.27599272]
[1737934250922,0.8941277,666.56,665.16,0.27599272]
[1737934251123,0.8941277,666.56,665.17,0.27599272]
[1737934251318,0.8941277,666.56,665.18,0.27599272]
[1737934251524,0.8941277,666.55,665.16,0.27599272]
[1737934251723,0.8941277,666.55,665.17,0.27599272]
[1737934251926,0.8941277,666.54,665.18,0.27599272]
[1737934252123,0.8941277,666.54,665.16,0.27599272]
[1737934252318,0.8941277,666.53,665.16,0.27599272]
[1737934253119,0.8941277,666.52,665.16,0.27599272]
[1737934253325,0.8941277,666.52,665.17,0.27609932]
[1737934253525,0.8941277,666.51,665.16,0.27609932]
[1737934253825,0.8941277,666.51,665.17,0.27609932]
[1737934254025,0.8941277,666.5,665.18,0.27609932]
[1737934254219,0.8941277,666.5,665.19,0.27609932]
[1737934254419,0.8941277,666.5,665.2,0.27609932]
[1737934254620,0.8941277,666.49,665.21,0.27609932]
[1737934254818,0.8941277,666.49,665.22,0.27609932]
[1737934255120,0.8941277,666.48,665.15,0.27609932]
[1737934255327,0.8941277,666.48,665.22,0.897]
[1737934255821,0.8941277,666.47,665.22,0.897]
[1737934256427,0.8941277,666.47,665.23,0.27615617]
[1737934256625,0.8941277,666.47,665.22,0.897]
[1737934256821,0.8941277,666.46,665.22,0.897]
[1737934257224,0.8941277,666.45,665.22,0.897]
[1737934257626,0.8941277,666.44,665.22,0.897]
[1737934258024,0.8941277,666.43,665.22,1.833]
[1737934258626,0.8941277,666.42,665.22,1.833]
[1737934259220,0.8941277,666.41,665.22,1.833]
[1737934259624,0.8941277,666.4,665.22,1.833]
[1737934260223,0.8941277,666.39,665.22,1.833]
[1737934260723,0.8941277,666.38,665.22,1.833]
[1737934260922,0.30013806,666.36,665.22,1.833]
[1737934261326,0.8941277,666.35,665.22,1.833]
[1737934262023,0.8941277,666.34,665.22,1.833]
[1737934262527,0.8941277,666.33,665.23,0.27613233]
[1737934263023,0.8941277,666.32,665.22,1.833]
[1737934263424,0.8941277,666.31,665.22,1.833]
[1737934263621,0.8941277,666.3,665.22,1.833]
[1737934264022,0.8941277,666.29,665.22,1.833]
[1737934264420,0.30013806,666.36,665.22,1.833]
[1737934264421,0.8941277,666.28,665.22,1.833]
[1737934265328,0.8941277,666.27,665.22,1.833]
[1737934265527,0.8941277,666.26,665.22,1.833]
[1737934266328,0.8941277,666.25,665.23,0.27608651]
[1737934266529,0.8941277,666.25,665.24,0.27608651]
[1737934266829,0.8941277,666.24,665.25,0.276049]
[1737934267130,0.8941277,666.24,665.26,0.276049]
[1737934267326,0.8941277,666.23,665.27,0.276049]
[1737934267530,0.8941277,666.23,665.28,0.276049]
[1737934267727,0.8941277,666.22,665.23,0.276049]
[1737934267925,0.8941277,666.22,665.22,1.833]
[1737934267926,0.8941277,666.22,665.24,0.276049]
[1737934268231,0.8941277,666.21,665.25,0.276049]
[1737934268434,0.8941277,666.21,665.22,1.833]
[1737934268732,0.8941277,666.2,665.23,0.27602214]
[1737934269336,0.8941277,666.19,665.23,0.27602214]
[1737934270030,0.8941277,666.18,665.23,0.27602214]
[1737934270636,0.8941277,666.17,665.23,0.27602214]
[1737934270936,0.8941277,666.16,665.23,0.27602214]
[1737934271335,0.8941277,666.15,665.24,0.27602214]
[1737934271636,0.8941277,666.15,665.25,0.27602214]
[1737934271838,0.8941277,666.15,665.26,0.27602214]
[1737934272131,0.8941277,666.14,665.22,1.833]
[1737934272532,0.8941277,666.13,665.22,1.833]
[1737934273037,0.8941277,666.12,665.22,1.833]
[1737934273737,0.8941277,666.11,665.22,1.833]
[1737934274131,0.8941277,666.1,665.22,1.833]
[1737934274537,0.8941277,666.09,665.22,1.833]
[1737934275039,0.8941277,666.09,665.23,0.27602747]
[1737934275337,0.8941277,666.08,665.23,0.27602747]
[1737934275940,0.8941277,666.07,665.23,0.27602747]
[1737934276335,0.8941277,666.06,665.23,0.27602747]
[1737934277239,0.8941277,666.05,665.23,0.27602747]
[1737934277638,0.8941277,666.04,665.23,0.27602747]
[1737934277835,0.8941277,666.35,665.24,0.27598579]
[1737934278034,0.8941277,666.35,665.23,0.27598579]
[1737934278235,0.30014707,666.34,665.24,0.27598579]
[1737934278441,1.19427477,666.34,665.23,0.27598579]
[1737934278639,1.19427477,666.34,665.24,0.27598579]
[1737934278840,1.19427477,666.34,665.25,0.27598579]
[1737934279043,1.19427477,666.34,665.23,0.27598579]
[1737934279343,0.8941277,666.33,665.23,0.27598579]
[1737934279542,0.30015608,666.32,665.23,0.27598579]
[1737934279942,1.19428378,666.32,665.23,0.27598579]
[1737934280138,1.19428378,666.32,665.23,0.92398579]
[1737934280345,0.8941277,666.31,665.24,0.27598579]
[1737934280943,0.8941277,666.3,665.25,0.27598579]
[1737934281138,0.8941277,666.3,665.26,0.27598579]
[1737934281344,0.8941277,666.3,665.27,0.27598579]
[1737934281542,0.8941277,666.3,665.28,0.27586291]
[1737934281743,0.8941277,666.3,665.29,0.27586291]
[1737934282047,0.8941277,666.31,665.24,0.27586291]
[1737934282237,0.8941277,666.31,665.23,0.648]
[1737934282238,0.30015608,666.32,665.25,0.27586291]
[1737934282440,0.30015608,666.32,665.23,0.648]
[1737934282441,0.89683039,666.3,665.26,0.27586291]
[1737934282642,0.89683039,666.3,665.27,0.27586291]
[1737934282842,0.89683039,666.29,665.28,0.27586291]
[1737934283041,0.89683039,666.29,665.24,0.27586291]
[1737934283239,0.89683039,666.28,665.23,0.648]
[1737934283441,0.89683039,666.28,665.24,0.27588291]
[1737934283747,0.89683039,666.27,665.24,0.27588291]
[1737934284348,0.89683039,666.27,665.24,1.08288291]
[1737934284540,0.89683039,666.26,665.25,0.27588291]
[1737934284944,0.89683039,666.25,665.25,0.27588291]
[1737934285648,0.89683039,666.24,665.25,0.27588291]
[1737934286442,0.89683039,666.23,665.25,0.27588291]
[1737934286844,0.30015608,666.32,665.25,0.27588291]
[1737934286845,0.89683039,666.22,665.25,0.27588291]
[1737934287352,0.89683039,666.21,665.25,0.27588291]
[1737934287552,0.89683039,666.21,665.24,0.807]
[1737934287746,0.89683039,666.2,665.24,0.807]
[1737934287947,0.89683039,666.2,665.25,0.27602595]
[1737934288247,1.19704504,666.19,665.25,0.27602595]
[1737934288750,0.89683039,666.18,665.25,0.27602595]
[1737934289143,1.19705405,666.17,665.25,0.27602595]
[1737934289347,0.30022817,666.16,665.25,0.27602595]
[1737934289544,0.89683039,666.15,665.25,0.27602595]
[1737934290047,0.89683039,666.14,665.25,0.27602595]
[1737934290449,0.89683039,666.13,665.25,0.27602595]
[1737934290850,0.89683039,666.13,665.26,0.27602595]
[1737934291051,0.89683039,666.12,665.27,0.27602595]
[1737934291252,0.89683039,666.12,665.25,0.27602595]
[1737934291449,0.89683039,666.11,665.26,0.27602595]
[1737934291650,0.89683039,666.1,665.25,0.27602595]
[1737934292247,0.89683039,666.09,665.24,0.807]
[1737934292647,0.30026423,666.08,665.24,0.807]
[1737934292852,0.89683039,666.07,665.24,0.807]
[1737934293554,0.89683039,666.06,665.24,0.807]
[1737934294151,0.89683039,666.05,665.24,0.807]
[1737934294651,0.89683039,666.04,665.24,0.807]
[1737934295157,0.89683039,666.03,665.24,0.807]
[1737934295450,0.89683039,666.02,665.24,0.807]
[1737934296355,0.89683039,666.01,665.24,0.807]
[1737934296747,0.89683039,666.0,665.24,0.807]
[1737934297149,0.89683039,665.99,665.24,0.807]
[1737934297955,0.89683039,665.98,665.24,0.807]
[1737934298656,0.89683039,665.97,665.24,0.807]
[1737934299249,0.89683039,665.96,665.24,0.807]
[1737934299956,0.89683039,665.95,665.24,0.807]
[1737934300657,0.89683039,665.94,665.24,0.807]
[1737934301250,0.89683039,665.93,665.24,0.807]
[1737934301648,0.89683039,665.92,665.24,0.807]
[1737934302252,0.89683039,665.91,665.24,0.807]
[1737934302853,0.89683039,665.9,665.24,0.807]
[1737934303256,0.89683039,665.89,665.24,0.807]
[1737934303857,0.89683039,665.88,665.24,0.807]
[1737934304356,0.89683039,665.87,665.24,0.807]
[1737934304753,0.89683039,665.86,665.24,0.807]
[1737934305151,0.89683039,665.85,665.24,0.807]
[1737934305355,0.89683039,665.84,665.24,0.807]
[1737934305758,0.89683039,665.83,665.24,0.807]
[1737934306159,0.89683039,665.82,665.24,0.807]
[1737934306658,0.30026874,666.07,665.24,0.807]
[1737934307054,0.90192736,666.06,665.24,0.807]
[1737934307459,0.90192736,666.05,665.24,0.807]
[1737934307955,0.90192736,666.04,665.24,0.807]
[1737934308356,0.90192736,666.04,665.24,1.496]
[1737934308557,0.90192736,666.03,665.24,1.496]
[1737934309360,0.90192736,666.02,665.24,1.496]
[1737934309759,0.90192736,666.01,665.24,1.496]
[1737934310856,0.90192736,666.0,665.25,0.27598646]
[1737934311658,0.90192736,665.99,665.25,0.27598646]
[1737934311962,0.90192736,665.98,665.25,0.27598646]
[1737934312158,0.90192736,665.98,665.25,1.21098646]
[1737934312353,0.90192736,665.98,665.26,0.27598646]
[1737934312759,0.30026874,666.07,665.26,0.27598646]
[1737934312959,0.30026874,666.07,665.27,0.27592059]
[1737934313160,0.30026874,666.07,665.26,0.27592059]
[1737934314562,1.07994357,666.8,665.26,0.27592059]
[1737934314762,0.299949,666.78,665.26,0.27592059]
[1737934315264,0.90214827,666.77,665.26,0.27592059]
[1737934315656,0.2999625,666.75,665.26,0.27592059]
[1737934316264,0.90214827,666.74,665.26,0.27592059]
[1737934316857,0.90214827,666.73,665.26,0.27592059]
[1737934317763,0.90214827,666.72,665.26,0.27592059]
[1737934318365,0.90214827,666.71,665.27,0.27592059]
[1737934318665,0.90214827,666.7,665.28,0.27581231]
[1737934318865,0.90214827,666.7,665.26,0.27581231]
[1737934319165,0.90214827,666.7,665.27,0.27581231]
[1737934319665,0.90214827,666.69,665.28,0.27581231]
[1737934319863,0.90214827,666.69,665.29,0.27581231]
[1737934320059,0.90214827,666.69,665.3,0.27581231]
[1737934320262,0.90214827,666.68,665.26,0.27581231]
[1737934320474,0.90214827,666.67,665.26,0.27581231]
[1737934320965,0.90214827,666.66,665.27,0.27581231]
[1737934321165,0.90214827,666.66,665.28,0.27581231]
[1737934321367,0.90214827,666.65,665.29,0.27581231]
[1737934321568,0.90214827,666.65,665.3,0.27581231]
[1737934321966,0.90214827,666.64,665.3,0.27581231]
[1737934322364,0.90214827,666.63,665.3,0.27581231]
[1737934322963,0.2999625,666.75,665.29,0.745]
[1737934322964,0.90214827,666.62,665.29,0.745]
[1737934323567,0.90214827,666.61,665.29,0.745]
[1737934324068,0.90214827,666.61,665.3,0.27597755]
[1737934324269,0.90214827,666.6,665.3,0.27597755]
[1737934324568,0.90214827,666.6,665.29,0.745]
[1737934324769,0.2999625,666.75,665.29,0.745]
[1737934324770,0.90214827,666.59,665.29,0.745]
[1737934324967,0.90214827,666.59,665.3,0.27591789]
[1737934325171,0.90214827,666.58,665.3,0.27591789]
[1737934325564,0.90214827,666.57,665.31,0.27591789]
[1737934325768,0.90214827,666.57,665.3,0.27591789]
[1737934326167,0.90214827,666.56,665.3,0.27591789]
[1737934326766,0.90214827,666.55,665.3,0.27591789]
[1737934327166,0.90214827,666.54,665.3,0.27591789]
[1737934327676,0.90214827,666.53,665.3,0.27591789]
[1737934328068,0.90214827,666.53,665.29,0.745]
[1737934328272,0.90214827,666.52,665.29,0.745]
[1737934328673,0.90214827,666.51,665.29,0.745]